Workbook

Sheet Repasse_AF
B1: UNIÃO | H1: Base para Cálculo Recurso Federal | J1: ESTADO E MUNICÍPIOS
B2: Anual | E2: Mensal | J2: Repasse Anual | M2: Repasse Mensal
A3: MUNICÍPIO | B3: Portaria nº 2001/2017 | C3: Portaria nº 3193/2019 | D3: Diferença Ano | E3: Portaria nº 2001/2017 | F3: Portaria nº 2001/2017 | G3: Diferença Mês | H3: Faixa IDHM 2010 | I3: IDHM 2010 | J3: Portaria nº 2001/2017 | K3: Portaria nº 3193/2019 | L3: Diferença ano | M3: Portaria nº 2001/2017 | N3: Portaria nº 3193/2019 | O3: Diferença Mês
A4: Aceguá | B4: 26,398.98 | C4: 29,160.95 | D4: =C4-B4 -> 2,761.97 | E4: 2,199.92 | F4: 2,430.08 | G4: 230.16 | H4: 3 - MÉDIO | I4: 0.687 | J4: R$ 11,165.16 | K4: R$ 11,566.36 | L4: R$ 401.20 | M4: R$ 930.43 | N4: R$ 963.86 | O4: =(N4-M4) -> R$ 33.43
A5: Água Santa | B5: 21,432.78 | C5: 22,113.20 | D5: 680.42 | E5: 1,786.07 | F5: 1,842.77 | G5: 56.70 | H5: 4 - ALTO | I5: 0.750 | J5: R$ 9,064.76 | K5: R$ 9,064.76 | L5: R$ 0.00 | M5: R$ 755.40 | N5: R$ 755.40 | O5: R$ 0.00
A6: Agudo | B6: 95,429.16 | C6: 97,942.95 | D6: 2,513.79 | E6: 7,952.43 | F6: 8,161.91 | G6: 209.48 | H6: 3 - MÉDIO | I6: 0.694 | J6: R$ 40,360.72 | K6: R$ 40,360.72 | L6: R$ 0.00 | M6: R$ 3,363.39 | N6: R$ 3,363.39 | O6: R$ 0.00
A7: Ajuricaba | B7: 41,146.92 | C7: 41,441.60 | D7: 294.68 | E7: 3,428.91 | F7: 3,453.47 | G7: 24.56 | H7: 4 - ALTO | I7: 0.753 | J7: R$ 17,402.64 | K7: R$ 17,402.64 | L7: R$ 0.00 | M7: R$ 1,450.22 | N7: R$ 1,450.22 | O7: R$ 0.00
A8: Alecrim | B8: 40,505.22 | C8: 43,191.05 | D8: 2,685.83 | E8: 3,375.44 | F8: 3,599.25 | G8: 223.82 | H8: 3 - MÉDIO | I8: 0.672 | J8: R$ 17,131.24 | K8: R$ 17,131.24 | L8: R$ 0.00 | M8: R$ 1,427.60 | N8: R$ 1,427.60 | O8: R$ 0.00
A9: Alegrete | B9: 440,730.72 | C9: 466,005.60 | D9: 25,274.88 | E9: 36,727.56 | F9: 38,833.80 | G9: 2,106.24 | H9: 4 - ALTO | I9: 0.740 | J9: R$ 186,402.24 | K9: R$ 186,402.24 | L9: R$ 0.00 | M9: R$ 15,533.52 | N9: R$ 15,533.52 | O9: R$ 0.00
A10: Alegria | B10: 26,644.50 | C10: 28,411.25 | D10: 1,766.75 | E10: 2,220.38 | F10: 2,367.60 | G10: 147.23 | H10: 3 - MÉDIO | I10: 0.695 | J10: R$ 11,269.00 | K10: R$ 11,269.00 | L10: R$ 0.00 | M10: R$ 939.08 | N10: R$ 939.08 | O10: R$ 0.00
A11: Almirante Tamandaré do Sul | B11: 12,320.64 | C11: 13,027.20 | D11: 706.56 | E11: 1,026.72 | F11: 1,085.60 | G11: 58.88 | H11: 4 - ALTO | I11: 0.740 | J11: R$ 5,210.88 | K11: R$ 5,210.88 | L11: R$ 0.00 | M11: R$ 434.24 | N11: R$ 434.24 | O11: R$ 0.00
A12: Alpestre | B12: 49,550.40 | C12: 52,836.00 | D12: 3,285.60 | E12: 4,129.20 | F12: 4,403.00 | G12: 273.80 | H12: 3 - MÉDIO | I12: 0.671 | J12: R$ 20,956.80 | K12: R$ 20,956.80 | L12: R$ 0.00 | M12: R$ 1,746.40 | N12: R$ 1,746.40 | O12: R$ 0.00
A13: Alto Alegre | B13: 10,853.10 | C13: 11,475.50 | D13: 622.40 | E13: 904.43 | F13: 956.29 | G13: 51.87 | H13: 4 - ALTO | I13: 0.747 | J13: R$ 4,590.20 | K13: R$ 4,590.20 | L13: R$ 0.00 | M13: R$ 382.52 | N13: R$ 382.52 | O13: R$ 0.00
A14: Alto Feliz | B14: 17,113.86 | C14: 17,865.20 | D14: 751.34 | E14: 1,426.16 | F14: 1,488.77 | G14: 62.61 | H14: 4 - ALTO | I14: 0.734 | J14: R$ 7,238.12 | K14: R$ 7,238.12 | L14: R$ 0.00 | M14: R$ 603.18 | N14: R$ 603.18 | O14: R$ 0.00
A15: Alvorada | B15: 1,193,528.52 | C15: 1,251,314.75 | D15: 57,786.23 | E15: 99,460.71 | F15: 104,276.23 | G15: 4,815.52 | H15: 3 - MÉDIO | I15: 0.699 | J15: R$ 504,789.84 | K15: R$ 504,789.84 | L15: R$ 0.00 | M15: R$ 42,065.82 | N15: R$ 42,065.82 | O15: R$ 0.00
A16: Amaral Ferrador | B16: 38,038.86 | C16: 41,834.45 | D16: 3,795.59 | E16: 3,169.91 | F16: 3,486.20 | G16: 316.30 | H16: 3 - MÉDIO | I16: 0.624 | J16: R$ 16,088.12 | K16: R$ 16,593.16 | L16: R$ 505.04 | M16: R$ 1,340.68 | N16: R$ 1,382.76 | O16: R$ 42.09
A17: Ametista do Sul | B17: 47,642.04 | C17: 50,801.10 | D17: 3,159.06 | E17: 3,970.17 | F17: 4,233.43 | G17: 263.26 | H17: 3 - MÉDIO | I17: 0.682 | J17: R$ 20,149.68 | K17: R$ 20,149.68 | L17: R$ 0.00 | M17: R$ 1,679.14 | N17: R$ 1,679.14 | O17: R$ 0.00
A18: André da Rocha | B18: 7,254.00 | C18: 7,864.70 | D18: 610.70 | E18: 604.50 | F18: 655.39 | G18: 50.89 | H18: 4 - ALTO | I18: 0.720 | J18: R$ 3,068.00 | K18: R$ 3,145.88 | L18: R$ 77.88 | M18: R$ 255.67 | N18: R$ 262.16 | O18: R$ 6.49
A19: Anta Gorda | B19: 35,299.08 | C19: 37,323.40 | D19: 2,024.32 | E19: 2,941.59 | F19: 3,110.28 | G19: 168.69 | H19: 4 - ALTO | I19: 0.740 | J19: R$ 14,929.36 | K19: R$ 14,929.36 | L19: R$ 0.00 | M19: R$ 1,244.11 | N19: R$ 1,244.11 | O19: R$ 0.00
A20: Antônio Prado | B20: 79,648.92 | C20: 84,216.60 | D20: 4,567.68 | E20: 6,637.41 | F20: 7,018.05 | G20: 380.64 | H20: 4 - ALTO | I20: 0.758 | J20: R$ 33,686.64 | K20: R$ 33,686.64 | L20: R$ 0.00 | M20: R$ 2,807.22 | N20: R$ 2,807.22 | O20: R$ 0.00
A21: Arambaré | B21: 21,923.82 | C21: 23,377.55 | D21: 1,453.73 | E21: 1,826.99 | F21: 1,948.13 | G21: 121.14 | H21: 3 - MÉDIO | I21: 0.691 | J21: R$ 9,272.44 | K21: R$ 9,272.44 | L21: R$ 0.00 | M21: R$ 772.70 | N21: R$ 772.70 | O21: R$ 0.00
A22: Araricá | B22: 29,847.42 | C22: 33,903.10 | D22: 4,055.68 | E22: 2,487.29 | F22: 2,825.26 | G22: 337.97 | H22: 3 - MÉDIO | I22: 0.679 | J22: R$ 12,623.64 | K22: R$ 13,447.28 | L22: R$ 823.64 | M22: R$ 1,051.97 | N22: R$ 1,120.61 | O22: R$ 68.64
A23: Aratiba | B23: 37,330.20 | C23: 39,471.00 | D23: 2,140.80 | E23: 3,110.85 | F23: 3,289.25 | G23: 178.40 | H23: 4 - ALTO | I23: 0.772 | J23: R$ 15,788.40 | K23: R$ 15,788.40 | L23: R$ 0.00 | M23: R$ 1,315.70 | N23: R$ 1,315.70 | O23: R$ 0.00
A24: Arroio do Meio | B24: 112,503.96 | C24: 122,749.50 | D24: 10,245.54 | E24: 9,375.33 | F24: 10,229.13 | G24: 853.80 | H24: 4 - ALTO | I24: 0.769 | J24: R$ 47,582.32 | K24: R$ 49,099.80 | L24: R$ 1,517.48 | M24: R$ 3,965.19 | N24: R$ 4,091.65 | O24: R$ 126.46
A25: Arroio do Sal | B25: 49,779.18 | C25: 59,383.50 | D25: 9,604.32 | E25: 4,148.27 | F25: 4,948.63 | G25: 800.36 | H25: 4 - ALTO | I25: 0.740 | J25: R$ 21,053.56 | K25: R$ 23,753.40 | L25: R$ 2,699.84 | M25: R$ 1,754.46 | N25: R$ 1,979.45 | O25: R$ 224.99
A26: Arroio do Padre | B26: 16,154.10 | C26: 17,475.15 | D26: 1,321.05 | E26: 1,346.18 | F26: 1,456.26 | G26: 110.09 | H26: 3 - MÉDIO | I26: 0.669 | J26: R$ 6,832.20 | K26: R$ 6,931.32 | L26: R$ 99.12 | M26: R$ 569.35 | N26: R$ 577.61 | O26: R$ 8.26
A27: Arroio dos Ratos | B27: 79,386.66 | C27: 84,198.45 | D27: 4,811.79 | E27: 6,615.56 | F27: 7,016.54 | G27: 400.98 | H27: 3 - MÉDIO | I27: 0.698 | J27: R$ 33,575.72 | K27: R$ 33,575.72 | L27: R$ 0.00 | M27: R$ 2,797.98 | N27: R$ 2,797.98 | O27: R$ 0.00
A28: Arroio do Tigre | B28: 74,509.74 | C28: 78,900.70 | D28: 4,390.96 | E28: 6,209.15 | F28: 6,575.06 | G28: 365.91 | H28: 4 - ALTO | I28: 0.707 | J28: R$ 31,513.08 | K28: R$ 31,560.28 | L28: R$ 47.20 | M28: R$ 2,626.09 | N28: R$ 2,630.02 | O28: R$ 3.93
A29: Arroio Grande | B29: 105,657.30 | C29: 108,843.35 | D29: 3,186.05 | E29: 8,804.78 | F29: 9,070.28 | G29: 265.50 | H29: 3 - MÉDIO | I29: 0.657 | J29: R$ 44,686.60 | K29: R$ 44,686.60 | L29: R$ 0.00 | M29: R$ 3,723.88 | N29: R$ 3,723.88 | O29: R$ 0.00
A30: Arvorezinha | B30: 59,175.90 | C30: 62,022.80 | D30: 2,846.90 | E30: 4,931.33 | F30: 5,168.57 | G30: 237.24 | H30: 3 - MÉDIO | I30: 0.694 | J30: R$ 25,027.80 | K30: R$ 25,027.80 | L30: R$ 0.00 | M30: R$ 2,085.65 | N30: R$ 2,085.65 | O30: R$ 0.00
A31: Augusto Pestana | B31: 41,074.38 | C31: 43,429.90 | D31: 2,355.52 | E31: 3,422.87 | F31: 3,619.16 | G31: 196.29 | H31: 4 - ALTO | I31: 0.743 | J31: R$ 17,371.96 | K31: R$ 17,371.96 | L31: R$ 0.00 | M31: R$ 1,447.66 | N31: R$ 1,447.66 | O31: R$ 0.00
A32: Áurea | B32: 21,142.62 | C32: 22,355.10 | D32: 1,212.48 | E32: 1,761.89 | F32: 1,862.93 | G32: 101.04 | H32: 4 - ALTO | I32: 0.707 | J32: R$ 8,942.04 | K32: R$ 8,942.04 | L32: R$ 0.00 | M32: R$ 745.17 | N32: R$ 745.17 | O32: R$ 0.00
A33: Bagé | B33: 680,681.88 | C33: 714,743.70 | D33: 34,061.82 | E33: 56,723.49 | F33: 59,561.98 | G33: 2,838.49 | H33: 4 - ALTO | I33: 0.740 | J33: R$ 287,886.96 | K33: R$ 287,886.96 | L33: R$ 0.00 | M33: R$ 23,990.58 | N33: R$ 23,990.58 | O33: R$ 0.00
A34: Balneário Pinhal | B34: 69,710.94 | C34: 83,704.60 | D34: 13,993.66 | E34: 5,809.25 | F34: 6,975.38 | G34: 1,166.14 | H34: 3 - MÉDIO | I34: 0.696 | J34: R$ 29,483.48 | K34: R$ 33,200.48 | L34: R$ 3,717.00 | M34: R$ 2,456.96 | N34: R$ 2,766.71 | O34: R$ 309.75
A35: Barão | B35: 33,959.88 | C35: 36,408.90 | D35: 2,449.02 | E35: 2,829.99 | F35: 3,034.08 | G35: 204.09 | H35: 4 - ALTO | I35: 0.748 | J35: R$ 14,362.96 | K35: R$ 14,563.56 | L35: R$ 200.60 | M35: R$ 1,196.91 | N35: R$ 1,213.63 | O35: R$ 16.72
A36: Barão de Cotegipe | B36: 37,715.22 | C36: 39,075.70 | D36: 1,360.48 | E36: 3,142.94 | F36: 3,256.31 | G36: 113.37 | H36: 4 - ALTO | I36: 0.719 | J36: R$ 15,951.24 | K36: R$ 15,951.24 | L36: R$ 0.00 | M36: R$ 1,329.27 | N36: R$ 1,329.27 | O36: R$ 0.00
A37: Barão do Triunfo | B37: 41,375.70 | C37: 44,547.65 | D37: 3,171.95 | E37: 3,447.98 | F37: 3,712.30 | G37: 264.33 | H37: 3 - MÉDIO | I37: 0.610 | J37: R$ 17,499.40 | K37: R$ 17,669.32 | L37: R$ 169.92 | M37: R$ 1,458.28 | N37: R$ 1,472.44 | O37: R$ 14.16
A38: Barracão | B38: 30,572.82 | C38: 31,122.50 | D38: 549.68 | E38: 2,547.74 | F38: 2,593.54 | G38: 45.81 | H38: 4 - ALTO | I38: 0.710 | J38: R$ 12,930.44 | K38: R$ 12,930.44 | L38: R$ 0.00 | M38: R$ 1,077.54 | N38: R$ 1,077.54 | O38: R$ 0.00
A39: Barra do Guarita | B39: 18,107.10 | C39: 19,163.20 | D39: 1,056.10 | E39: 1,508.93 | F39: 1,596.93 | G39: 88.01 | H39: 4 - ALTO | I39: 0.734 | J39: R$ 7,658.20 | K39: R$ 7,665.28 | L39: R$ 7.08 | M39: R$ 638.18 | N39: R$ 638.77 | O39: R$ 0.59
A40: Barra do Quaraí | B40: 23,502.96 | C40: 25,079.25 | D40: 1,576.29 | E40: 1,958.58 | F40: 2,089.94 | G40: 131.36 | H40: 3 - MÉDIO | I40: 0.662 | J40: R$ 9,940.32 | K40: R$ 9,947.40 | L40: R$ 7.08 | M40: R$ 828.36 | N40: R$ 828.95 | O40: R$ 0.59
A41: Barra do Ribeiro | B41: 74,303.28 | C41: 80,271.45 | D41: 5,968.17 | E41: 6,191.94 | F41: 6,689.29 | G41: 497.35 | H41: 3 - MÉDIO | I41: 0.670 | J41: R$ 31,425.76 | K41: R$ 31,838.76 | L41: R$ 413.00 | M41: R$ 2,618.81 | N41: R$ 2,653.23 | O41: R$ 34.42
A42: Barra do Rio Azul | B42: 11,037.24 | C42: 11,670.20 | D42: 632.96 | E42: 919.77 | F42: 972.52 | G42: 52.75 | H42: 4 - ALTO | I42: 0.723 | J42: R$ 4,668.08 | K42: R$ 4,668.08 | L42: R$ 0.00 | M42: R$ 389.01 | N42: R$ 389.01 | O42: R$ 0.00
A43: Barra Funda | B43: 13,989.06 | C43: 14,980.10 | D43: 991.04 | E43: 1,165.76 | F43: 1,248.34 | G43: 82.59 | H43: 4 - ALTO | I43: 0.763 | J43: R$ 5,916.52 | K43: R$ 5,992.04 | L43: R$ 75.52 | M43: R$ 493.04 | N43: R$ 499.34 | O43: R$ 6.29
A44: Barros Cassal | B44: 66,284.82 | C44: 66,634.05 | D44: 349.23 | E44: 5,523.74 | F44: 5,552.84 | G44: 29.10 | H44: 3 - MÉDIO | I44: 0.650 | J44: R$ 28,034.44 | K44: R$ 28,034.44 | L44: R$ 0.00 | M44: R$ 2,336.20 | N44: R$ 2,336.20 | O44: R$ 0.00
A45: Benjamin Constant do Sul | B45: 12,694.50 | C45: 13,536.25 | D45: 841.75 | E45: 1,057.88 | F45: 1,128.02 | G45: 70.15 | H45: 3 - MÉDIO | I45: 0.619 | J45: R$ 5,369.00 | K45: R$ 5,369.00 | L45: R$ 0.00 | M45: R$ 447.42 | N45: R$ 447.42 | O45: R$ 0.00
A46: Bento Gonçalves | B46: 637,252.74 | C46: 710,678.60 | D46: 73,425.86 | E46: 53,104.40 | F46: 59,223.22 | G46: 6,118.82 | H46: 4 - ALTO | I46: 0.778 | J46: R$ 269,519.08 | K46: R$ 284,271.44 | L46: R$ 14,752.36 | M46: R$ 22,459.92 | N46: R$ 23,689.29 | O46: R$ 1,229.36
A47: Boa Vista das Missões | B47: 12,097.44 | C47: 12,483.10 | D47: 385.66 | E47: 1,008.12 | F47: 1,040.26 | G47: 32.14 | H47: 3 - MÉDIO | I47: 0.676 | J47: R$ 5,116.48 | K47: R$ 5,116.48 | L47: R$ 0.00 | M47: R$ 426.37 | N47: R$ 426.37 | O47: R$ 0.00
A48: Boa Vista do Buricá | B48: 38,066.76 | C48: 39,600.80 | D48: 1,534.04 | E48: 3,172.23 | F48: 3,300.07 | G48: 127.84 | H48: 4 - ALTO | I48: 0.762 | J48: R$ 16,099.92 | K48: R$ 16,099.92 | L48: R$ 0.00 | M48: R$ 1,341.66 | N48: R$ 1,341.66 | O48: R$ 0.00
A49: Boa Vista do Cadeado | B49: 14,089.50 | C49: 14,573.00 | D49: 483.50 | E49: 1,174.13 | F49: 1,214.42 | G49: 40.29 | H49: 4 - ALTO | I49: 0.703 | J49: R$ 5,959.00 | K49: R$ 5,959.00 | L49: R$ 0.00 | M49: R$ 496.58 | N49: R$ 496.58 | O49: R$ 0.00
A50: Boa Vista do Incra | B50: 14,413.14 | C50: 15,357.70 | D50: 944.56 | E50: 1,201.10 | F50: 1,279.81 | G50: 78.71 | H50: 4 - ALTO | I50: 0.731 | J50: R$ 6,095.88 | K50: R$ 6,143.08 | L50: R$ 47.20 | M50: R$ 507.99 | N50: R$ 511.92 | O50: R$ 3.93
A51: Boa Vista do Sul | B51: 15,953.22 | C51: 16,419.70 | D51: 466.48 | E51: 1,329.44 | F51: 1,368.31 | G51: 38.87 | H51: 4 - ALTO | I51: 0.728 | J51: R$ 6,747.24 | K51: R$ 6,747.24 | L51: R$ 0.00 | M51: R$ 562.27 | N51: R$ 562.27 | O51: R$ 0.00
A52: Bom Jesus | B52: 68,081.58 | C52: 72,595.95 | D52: 4,514.37 | E52: 5,673.47 | F52: 6,049.66 | G52: 376.20 | H52: 3 - MÉDIO | I52: 0.666 | J52: R$ 28,794.36 | K52: R$ 28,794.36 | L52: R$ 0.00 | M52: R$ 2,399.53 | N52: R$ 2,399.53 | O52: R$ 0.00
A53: Bom Princípio | B53: 72,897.12 | C53: 82,924.50 | D53: 10,027.38 | E53: 6,074.76 | F53: 6,910.38 | G53: 835.62 | H53: 4 - ALTO | I53: 0.746 | J53: R$ 30,831.04 | K53: R$ 33,169.80 | L53: R$ 2,338.76 | M53: R$ 2,569.25 | N53: R$ 2,764.15 | O53: R$ 194.90
A54: Bom Progresso | B54: 13,414.32 | C54: 14,183.60 | D54: 769.28 | E54: 1,117.86 | F54: 1,181.97 | G54: 64.11 | H54: 4 - ALTO | I54: 0.723 | J54: R$ 5,673.44 | K54: R$ 5,673.44 | L54: R$ 0.00 | M54: R$ 472.79 | N54: R$ 472.79 | O54: R$ 0.00
A55: Bom Retiro do Sul | B55: 67,841.64 | C55: 72,735.20 | D55: 4,893.56 | E55: 5,653.47 | F55: 6,061.27 | G55: 407.80 | H55: 4 - ALTO | I55: 0.739 | J55: R$ 28,692.88 | K55: R$ 29,094.08 | L55: R$ 401.20 | M55: R$ 2,391.07 | N55: R$ 2,424.51 | O55: R$ 33.43
A56: Boqueirão do Leão | B56: 45,181.26 | C56: 45,512.60 | D56: 331.34 | E56: 3,765.11 | F56: 3,792.72 | G56: 27.61 | H56: 4 - ALTO | I56: 0.700 | J56: R$ 19,108.92 | K56: R$ 19,108.92 | L56: R$ 0.00 | M56: R$ 1,592.41 | N56: R$ 1,592.41 | O56: R$ 0.00
A57: Bossoroca | B57: 43,998.30 | C57: 46,915.75 | D57: 2,917.45 | E57: 3,666.53 | F57: 3,909.65 | G57: 243.12 | H57: 3 - MÉDIO | I57: 0.692 | J57: R$ 18,608.60 | K57: R$ 18,608.60 | L57: R$ 0.00 | M57: R$ 1,550.72 | N57: R$ 1,550.72 | O57: R$ 0.00
A58: Bozano | B58: 13,174.38 | C58: 13,929.90 | D58: 755.52 | E58: 1,097.87 | F58: 1,160.83 | G58: 62.96 | H58: 4 - ALTO | I58: 0.745 | J58: R$ 5,571.96 | K58: R$ 5,571.96 | L58: R$ 0.00 | M58: R$ 464.33 | N58: R$ 464.33 | O58: R$ 0.00
A59: Braga | B59: 21,438.36 | C59: 22,859.90 | D59: 1,421.54 | E59: 1,786.53 | F59: 1,904.99 | G59: 118.46 | H59: 3 - MÉDIO | I59: 0.674 | J59: R$ 9,067.12 | K59: R$ 9,067.12 | L59: R$ 0.00 | M59: R$ 755.59 | N59: R$ 755.59 | O59: R$ 0.00
A60: Brochier | B60: 27,760.50 | C60: 30,190.30 | D60: 2,429.80 | E60: 2,313.38 | F60: 2,515.86 | G60: 202.48 | H60: 3 - MÉDIO | I60: 0.699 | J60: R$ 11,741.00 | K60: R$ 11,974.64 | L60: R$ 233.64 | M60: R$ 978.42 | N60: R$ 997.89 | O60: R$ 19.47
A61: Butiá | B61: 118,407.60 | C61: 124,598.95 | D61: 6,191.35 | E61: 9,867.30 | F61: 10,383.25 | G61: 515.95 | H61: 3 - MÉDIO | I61: 0.689 | J61: R$ 50,079.20 | K61: R$ 50,079.20 | L61: R$ 0.00 | M61: R$ 4,173.27 | N61: R$ 4,173.27 | O61: R$ 0.00
A62: Caçapava do Sul | B62: 193,313.52 | C62: 198,381.60 | D62: 5,068.08 | E62: 16,109.46 | F62: 16,531.80 | G62: 422.34 | H62: 4 - ALTO | I62: 0.704 | J62: R$ 81,759.84 | K62: R$ 81,759.84 | L62: R$ 0.00 | M62: R$ 6,813.32 | N62: R$ 6,813.32 | O62: R$ 0.00
A63: Cacequi | B63: 75,977.28 | C63: 80,334.40 | D63: 4,357.12 | E63: 6,331.44 | F63: 6,694.53 | G63: 363.09 | H63: 4 - ALTO | I63: 0.700 | J63: R$ 32,133.76 | K63: R$ 32,133.76 | L63: R$ 0.00 | M63: R$ 2,677.81 | N63: R$ 2,677.81 | O63: R$ 0.00
A64: Cachoeira do Sul | B64: 482,988.06 | C64: 484,985.90 | D64: 1,997.84 | E64: 40,249.01 | F64: 40,415.49 | G64: 166.49 | H64: 4 - ALTO | I64: 0.742 | J64: R$ 204,274.52 | K64: R$ 204,274.52 | L64: R$ 0.00 | M64: R$ 17,022.88 | N64: R$ 17,022.88 | O64: R$ 0.00
A65: Cachoeirinha | B65: 706,796.28 | C65: 768,728.70 | D65: 61,932.42 | E65: 58,899.69 | F65: 64,060.73 | G65: 5,161.04 | H65: 4 - ALTO | I65: 0.757 | J65: R$ 298,931.76 | K65: R$ 307,491.48 | L65: R$ 8,559.72 | M65: R$ 24,910.98 | N65: R$ 25,624.29 | O65: R$ 713.31
A66: Cacique Doble | B66: 28,402.20 | C66: 30,136.75 | D66: 1,734.55 | E66: 2,366.85 | F66: 2,511.40 | G66: 144.55 | H66: 3 - MÉDIO | I66: 0.662 | J66: R$ 12,012.40 | K66: R$ 12,012.40 | L66: R$ 0.00 | M66: R$ 1,001.03 | N66: R$ 1,001.03 | O66: R$ 0.00
A67: Caibaté | B67: 29,082.96 | C67: 30,750.80 | D67: 1,667.84 | E67: 2,423.58 | F67: 2,562.57 | G67: 138.99 | H67: 4 - ALTO | I67: 0.719 | J67: R$ 12,300.32 | K67: R$ 12,300.32 | L67: R$ 0.00 | M67: R$ 1,025.03 | N67: R$ 1,025.03 | O67: R$ 0.00
A68: Caiçara | B68: 29,239.20 | C68: 31,178.00 | D68: =C68-B68 -> 1,938.80 | E68: 2,436.60 | F68: 2,598.17 | G68: 161.57 | H68: 3 - MÉDIO | I68: 0.699 | J68: R$ 12,366.40 | K68: R$ 12,366.40 | L68: R$ 0.00 | M68: R$ 1,030.53 | N68: R$ 1,030.53 | O68: =(N68-M68) -> R$ 0.00
A69: Camaquã | B69: 368,452.98 | C69: 394,252.95 | D69: 25,799.97 | E69: 30,704.42 | F69: 32,854.41 | G69: 2,150.00 | H69: 3 - MÉDIO | I69: 0.697 | J69: R$ 155,833.16 | K69: R$ 156,375.96 | L69: R$ 542.80 | M69: R$ 12,986.10 | N69: R$ 13,031.33 | O69: R$ 45.23
A70: Camargo | B70: 15,211.08 | C70: 16,124.70 | D70: 913.62 | E70: 1,267.59 | F70: 1,343.73 | G70: 76.14 | H70: 4 - ALTO | I70: 0.736 | J70: R$ 6,433.36 | K70: R$ 6,449.88 | L70: R$ 16.52 | M70: R$ 536.11 | N70: R$ 537.49 | O70: R$ 1.38
A71: Cambará do Sul | B71: 40,388.04 | C71: 43,066.10 | D71: 2,678.06 | E71: 3,365.67 | F71: 3,588.84 | G71: 223.17 | H71: 3 - MÉDIO | I71: 0.697 | J71: R$ 17,081.68 | K71: R$ 17,081.68 | L71: R$ 0.00 | M71: R$ 1,423.47 | N71: R$ 1,423.47 | O71: R$ 0.00
A72: Campestre da Serra | B72: 18,972.00 | C72: 19,989.20 | D72: 1,017.20 | E72: 1,581.00 | F72: 1,665.77 | G72: 84.77 | H72: 4 - ALTO | I72: 0.706 | J72: R$ 8,024.00 | K72: R$ 8,024.00 | L72: R$ 0.00 | M72: R$ 668.67 | N72: R$ 668.67 | O72: R$ 0.00
A73: Campina das Missões | B73: 35,444.16 | C73: 37,476.80 | D73: 2,032.64 | E73: 2,953.68 | F73: 3,123.07 | G73: 169.39 | H73: 4 - ALTO | I73: 0.738 | J73: R$ 14,990.72 | K73: R$ 14,990.72 | L73: R$ 0.00 | M73: R$ 1,249.23 | N73: R$ 1,249.23 | O73: R$ 0.00
A74: Campinas do Sul | B74: 32,057.10 | C74: 32,178.60 | D74: 121.50 | E74: 2,671.43 | F74: 2,681.55 | G74: 10.13 | H74: 4 - ALTO | I74: 0.760 | J74: R$ 13,558.20 | K74: R$ 13,558.20 | L74: R$ 0.00 | M74: R$ 1,129.85 | N74: R$ 1,129.85 | O74: R$ 0.00
A75: Campo Bom | B75: 360,205.74 | C75: 393,600.80 | D75: 33,395.06 | E75: 30,017.15 | F75: 32,800.07 | G75: 2,782.92 | H75: 4 - ALTO | I75: 0.745 | J75: R$ 152,345.08 | K75: R$ 157,440.32 | L75: R$ 5,095.24 | M75: R$ 12,695.42 | N75: R$ 13,120.03 | O75: R$ 424.60
A76: Campo Novo | B76: 30,238.02 | C76: 31,972.10 | D76: 1,734.08 | E76: 2,519.84 | F76: 2,664.34 | G76: 144.51 | H76: 4 - ALTO | I76: 0.703 | J76: R$ 12,788.84 | K76: R$ 12,788.84 | L76: R$ 0.00 | M76: R$ 1,065.74 | N76: R$ 1,065.74 | O76: R$ 0.00
A77: Campos Borges | B77: 20,606.94 | C77: 21,788.70 | D77: 1,181.76 | E77: 1,717.25 | F77: 1,815.73 | G77: 98.48 | H77: 4 - ALTO | I77: 0.708 | J77: R$ 8,715.48 | K77: R$ 8,715.48 | L77: R$ 0.00 | M77: R$ 726.29 | N77: R$ 726.29 | O77: R$ 0.00
A78: Candelária | B78: 175,998.78 | C78: 186,621.75 | D78: 10,622.97 | E78: 14,666.57 | F78: 15,551.81 | G78: 885.25 | H78: 3 - MÉDIO | I78: 0.674 | J78: R$ 74,436.76 | K78: R$ 74,436.76 | L78: R$ 0.00 | M78: R$ 6,203.06 | N78: R$ 6,203.06 | O78: R$ 0.00
A79: Cândido Godói | B79: 37,508.76 | C79: 39,659.80 | D79: 2,151.04 | E79: 3,125.73 | F79: 3,304.98 | G79: 179.25 | H79: 4 - ALTO | I79: 0.728 | J79: R$ 15,863.92 | K79: R$ 15,863.92 | L79: R$ 0.00 | M79: R$ 1,321.99 | N79: R$ 1,321.99 | O79: R$ 0.00
A80: Candiota | B80: 52,239.96 | C80: 57,024.80 | D80: 4,784.84 | E80: 4,353.33 | F80: 4,752.07 | G80: 398.74 | H80: 3 - MÉDIO | I80: 0.698 | J80: R$ 22,094.32 | K80: R$ 22,618.24 | L80: R$ 523.92 | M80: R$ 1,841.19 | N80: R$ 1,884.85 | O80: R$ 43.66
A81: Canela | B81: 238,522.68 | C81: 265,488.20 | D81: 26,965.52 | E81: 19,876.89 | F81: 22,124.02 | G81: 2,247.13 | H81: 4 - ALTO | I81: 0.748 | J81: R$ 100,880.56 | K81: R$ 106,195.28 | L81: R$ 5,314.72 | M81: R$ 8,406.71 | N81: R$ 8,849.61 | O81: R$ 442.89
A82: Canguçu | B82: 312,837.12 | C82: 333,467.75 | D82: 20,630.63 | E82: 26,069.76 | F82: 27,788.98 | G82: 1,719.22 | H82: 3 - MÉDIO | I82: 0.650 | J82: R$ 132,311.04 | K82: R$ 132,311.04 | L82: R$ 0.00 | M82: R$ 11,025.92 | N82: R$ 11,025.92 | O82: R$ 0.00
A83: Canoas | B83: 1,911,897.72 | C83: 2,045,034.40 | D83: 133,136.68 | E83: 159,324.81 | F83: 170,419.53 | G83: 11,094.72 | H83: 4 - ALTO | I83: 0.750 | J83: R$ 808,616.24 | K83: R$ 818,013.76 | L83: R$ 9,397.52 | M83: R$ 67,384.69 | N83: R$ 68,167.81 | O83: R$ 783.13
A84: Canudos do Vale | B84: 11,182.32 | C84: 11,823.60 | D84: 641.28 | E84: 931.86 | F84: 985.30 | G84: 53.44 | H84: 4 - ALTO | I84: 0.713 | J84: R$ 4,729.44 | K84: R$ 4,729.44 | L84: R$ 0.00 | M84: R$ 394.12 | N84: R$ 394.12 | O84: R$ 0.00
A85: Capão Bonito do Sul | B85: 10,473.66 | C85: 11,168.15 | D85: 694.49 | E85: 872.81 | F85: 930.68 | G85: 57.87 | H85: 3 - MÉDIO | I85: 0.637 | J85: R$ 4,429.72 | K85: R$ 4,429.72 | L85: R$ 0.00 | M85: R$ 369.14 | N85: R$ 369.14 | O85: R$ 0.00
A86: Capão da Canoa | B86: 266,679.36 | C86: 312,989.10 | D86: 46,309.74 | E86: 22,223.28 | F86: 26,082.43 | G86: 3,859.15 | H86: 4 - ALTO | I86: 0.743 | J86: R$ 112,789.12 | K86: R$ 125,195.64 | L86: R$ 12,406.52 | M86: R$ 9,399.09 | N86: R$ 10,432.97 | O86: R$ 1,033.88
A87: Capão do Cipó | B87: 19,446.30 | C87: 21,723.45 | D87: 2,277.15 | E87: 1,620.53 | F87: 1,810.29 | G87: 189.76 | H87: 3 - MÉDIO | I87: 0.672 | J87: R$ 8,224.60 | K87: R$ 8,616.36 | L87: R$ 391.76 | M87: R$ 685.38 | N87: R$ 718.03 | O87: R$ 32.65
A88: Capão do Leão | B88: 141,960.78 | C88: 150,856.30 | D88: 8,895.52 | E88: 11,830.07 | F88: 12,571.36 | G88: 741.29 | H88: 3 - MÉDIO | I88: 0.637 | J88: R$ 60,040.76 | K88: R$ 60,040.76 | L88: R$ 0.00 | M88: R$ 5,003.40 | N88: R$ 5,003.40 | O88: R$ 0.00
A89: Capivari do Sul | B89: 24,105.60 | C89: 27,494.00 | D89: 3,388.40 | E89: 2,008.80 | F89: 2,291.17 | G89: 282.37 | H89: 4 - ALTO | I89: 0.766 | J89: R$ 10,195.20 | K89: R$ 10,997.60 | L89: R$ 802.40 | M89: R$ 849.60 | N89: R$ 916.47 | O89: R$ 66.87
A90: Capela de Santana | B90: 65,475.72 | C90: 71,043.00 | D90: 5,567.28 | E90: 5,456.31 | F90: 5,920.25 | G90: 463.94 | H90: 3 - MÉDIO | I90: 0.661 | J90: R$ 27,692.24 | K90: R$ 28,178.40 | L90: R$ 486.16 | M90: R$ 2,307.69 | N90: R$ 2,348.20 | O90: R$ 40.51
A91: Capitão | B91: 15,417.54 | C91: 16,266.30 | D91: 848.76 | E91: 1,284.80 | F91: 1,355.53 | G91: 70.73 | H91: 4 - ALTO | I91: 0.746 | J91: R$ 6,520.68 | K91: R$ 6,520.68 | L91: R$ 0.00 | M91: R$ 543.39 | N91: R$ 543.39 | O91: R$ 0.00
A92: Carazinho | B92: 347,036.94 | C92: 366,449.00 | D92: 19,412.06 | E92: 28,919.75 | F92: 30,537.42 | G92: 1,617.67 | H92: 4 - ALTO | I92: 0.766 | J92: R$ 146,775.48 | K92: R$ 146,775.48 | L92: R$ 0.00 | M92: R$ 12,231.29 | N92: R$ 12,231.29 | O92: R$ 0.00
A93: Caraá | B93: 44,182.44 | C93: 49,206.50 | D93: 5,024.06 | E93: 3,681.87 | F93: 4,100.54 | G93: 418.67 | H93: 3 - MÉDIO | I93: 0.652 | J93: R$ 18,686.48 | K93: R$ 19,517.20 | L93: R$ 830.72 | M93: R$ 1,557.21 | N93: R$ 1,626.43 | O93: R$ 69.23
A94: Carlos Barbosa | B94: 155,319.30 | C94: 176,014.70 | D94: 20,695.40 | E94: 12,943.28 | F94: 14,667.89 | G94: 1,724.62 | H94: 4 - ALTO | I94: 0.796 | J94: R$ 65,690.60 | K94: R$ 70,405.88 | L94: R$ 4,715.28 | M94: R$ 5,474.22 | N94: R$ 5,867.16 | O94: R$ 392.94
A95: Carlos Gomes | B95: 9,586.44 | C95: 10,136.20 | D95: 549.76 | E95: 798.87 | F95: 844.68 | G95: 45.81 | H95: 4 - ALTO | I95: 0.739 | J95: R$ 4,054.48 | K95: R$ 4,054.48 | L95: R$ 0.00 | M95: R$ 337.87 | N95: R$ 337.87 | O95: R$ 0.00
A96: Casca | B96: 50,549.22 | C96: 53,282.90 | D96: 2,733.68 | E96: 4,212.44 | F96: 4,440.24 | G96: 227.81 | H96: 4 - ALTO | I96: 0.785 | J96: R$ 21,379.24 | K96: R$ 21,379.24 | L96: R$ 0.00 | M96: R$ 1,781.60 | N96: R$ 1,781.60 | O96: R$ 0.00
A97: Caseiros | B97: 17,710.92 | C97: 18,891.80 | D97: 1,180.88 | E97: 1,475.91 | F97: 1,574.32 | G97: 98.41 | H97: 4 - ALTO | I97: 0.703 | J97: R$ 7,490.64 | K97: R$ 7,556.72 | L97: R$ 66.08 | M97: R$ 624.22 | N97: R$ 629.73 | O97: R$ 5.51
A98: Catuípe | B98: 53,629.38 | C98: 56,704.90 | D98: 3,075.52 | E98: 4,469.12 | F98: 4,725.41 | G98: 256.29 | H98: 4 - ALTO | I98: 0.739 | J98: R$ 22,681.96 | K98: R$ 22,681.96 | L98: R$ 0.00 | M98: R$ 1,890.16 | N98: R$ 1,890.16 | O98: R$ 0.00
A99: Caxias do Sul | B99: 2,674,136.88 | C99: 3,014,345.40 | D99: 340,208.52 | E99: 222,844.74 | F99: 251,195.45 | G99: 28,350.71 | H99: 4 - ALTO | I99: 0.782 | J99: R$ 1,130,996.96 | K99: R$ 1,205,738.16 | L99: R$ 74,741.20 | M99: R$ 94,249.75 | N99: R$ 100,478.18 | O99: R$ 6,228.43
A100: Centenário | B100: 17,298.00 | C100: 18,290.00 | D100: 992.00 | E100: 1,441.50 | F100: 1,524.17 | G100: 82.67 | H100: 4 - ALTO | I100: 0.701 | J100: R$ 7,316.00 | K100: R$ 7,316.00 | L100: R$ 0.00 | M100: R$ 609.67 | N100: R$ 609.67 | O100: R$ 0.00
A101: Cerrito | B101: 37,759.86 | C101: 40,263.65 | D101: 2,503.79 | E101: 3,146.66 | F101: 3,355.30 | G101: 208.65 | H101: 3 - MÉDIO | I101: 0.649 | J101: R$ 15,970.12 | K101: R$ 15,970.12 | L101: R$ 0.00 | M101: R$ 1,330.84 | N101: R$ 1,330.84 | O101: R$ 0.00
A102: Cerro Branco | B102: 26,119.98 | C102: 27,911.45 | D102: 1,791.47 | E102: 2,176.67 | F102: 2,325.95 | G102: 149.29 | H102: 3 - MÉDIO | I102: 0.661 | J102: R$ 11,047.16 | K102: R$ 11,070.76 | L102: R$ 23.60 | M102: R$ 920.60 | N102: R$ 922.56 | O102: R$ 1.97
A103: Cerro Grande | B103: 14,837.22 | C103: 15,821.05 | D103: 983.83 | E103: 1,236.44 | F103: 1,318.42 | G103: 81.99 | H103: 3 - MÉDIO | I103: 0.674 | J103: R$ 6,275.24 | K103: R$ 6,275.24 | L103: R$ 0.00 | M103: R$ 522.94 | N103: R$ 522.94 | O103: R$ 0.00
A104: Cerro Grande do Sul | B104: 63,483.66 | C104: 72,822.05 | D104: 9,338.39 | E104: 5,290.31 | F104: 6,068.50 | G104: 778.20 | H104: 3 - MÉDIO | I104: 0.660 | J104: R$ 26,849.72 | K104: R$ 28,884.04 | L104: R$ 2,034.32 | M104: R$ 2,237.48 | N104: R$ 2,407.00 | O104: R$ 169.53
A105: Cerro Largo | B105: 78,253.92 | C105: 83,384.70 | D105: 5,130.78 | E105: 6,521.16 | F105: 6,948.73 | G105: 427.57 | H105: 4 - ALTO | I105: 0.764 | J105: R$ 33,096.64 | K105: R$ 33,353.88 | L105: R$ 257.24 | M105: R$ 2,758.05 | N105: R$ 2,779.49 | O105: R$ 21.44
A106: Chapada | B106: 53,975.34 | C106: 54,687.10 | D106: 711.76 | E106: 4,497.95 | F106: 4,557.26 | G106: 59.31 | H106: 4 - ALTO | I106: 0.757 | J106: R$ 22,828.28 | K106: R$ 22,828.28 | L106: R$ 0.00 | M106: R$ 1,902.36 | N106: R$ 1,902.36 | O106: R$ 0.00
A107: Charqueadas | B107: 215,382.42 | C107: 240,655.10 | D107: 25,272.68 | E107: 17,948.54 | F107: 20,054.59 | G107: 2,106.06 | H107: 4 - ALTO | I107: 0.747 | J107: R$ 91,093.64 | K107: R$ 96,262.04 | L107: R$ 5,168.40 | M107: R$ 7,591.14 | N107: R$ 8,021.84 | O107: R$ 430.70
A108: Charrua | B108: 20,322.36 | C108: 21,669.90 | D108: 1,347.54 | E108: 1,693.53 | F108: 1,805.83 | G108: 112.30 | H108: 3 - MÉDIO | I108: 0.620 | J108: R$ 8,595.12 | K108: R$ 8,595.12 | L108: R$ 0.00 | M108: R$ 716.26 | N108: R$ 716.26 | O108: R$ 0.00
A109: Chiapetta | B109: 22,844.52 | C109: 24,154.60 | D109: 1,310.08 | E109: 1,903.71 | F109: 2,012.88 | G109: 109.17 | H109: 4 - ALTO | I109: 0.732 | J109: R$ 9,661.84 | K109: R$ 9,661.84 | L109: R$ 0.00 | M109: R$ 805.15 | N109: R$ 805.15 | O109: R$ 0.00
A110: Chuí | B110: 35,784.54 | C110: 39,553.60 | D110: 3,769.06 | E110: 2,982.05 | F110: 3,296.13 | G110: 314.09 | H110: 4 - ALTO | I110: 0.706 | J110: R$ 15,134.68 | K110: R$ 15,821.44 | L110: R$ 686.76 | M110: R$ 1,261.22 | N110: R$ 1,318.45 | O110: R$ 57.23
A111: Chuvisca | B111: 29,529.36 | C111: 32,373.95 | D111: 2,844.59 | E111: 2,460.78 | F111: 2,697.83 | G111: 237.05 | H111: 3 - MÉDIO | I111: 0.616 | J111: R$ 12,489.12 | K111: R$ 12,840.76 | L111: R$ 351.64 | M111: R$ 1,040.76 | N111: R$ 1,070.06 | O111: R$ 29.30
A112: Cidreira | B112: 80,971.38 | C112: 95,898.60 | D112: 14,927.22 | E112: 6,747.62 | F112: 7,991.55 | G112: 1,243.94 | H112: 4 - ALTO | I112: 0.729 | J112: R$ 34,245.96 | K112: R$ 38,359.44 | L112: R$ 4,113.48 | M112: R$ 2,853.83 | N112: R$ 3,196.62 | O112: R$ 342.79
A113: Ciríaco | B113: 28,011.60 | C113: 29,618.00 | D113: 1,606.40 | E113: 2,334.30 | F113: 2,468.17 | G113: 133.87 | H113: 4 - ALTO | I113: 0.719 | J113: R$ 11,847.20 | K113: R$ 11,847.20 | L113: R$ 0.00 | M113: R$ 987.27 | N113: R$ 987.27 | O113: R$ 0.00
A114: Colinas | B114: 13,944.42 | C114: 14,384.20 | D114: 439.78 | E114: 1,162.04 | F114: 1,198.68 | G114: 36.65 | H114: 4 - ALTO | I114: 0.765 | J114: R$ 5,897.64 | K114: R$ 5,897.64 | L114: R$ 0.00 | M114: R$ 491.47 | N114: R$ 491.47 | O114: R$ 0.00
A115: Colorado | B115: 21,042.18 | C115: 22,248.90 | D115: 1,206.72 | E115: 1,753.52 | F115: 1,854.08 | G115: 100.56 | H115: 4 - ALTO | I115: 0.758 | J115: R$ 8,899.56 | K115: R$ 8,899.56 | L115: R$ 0.00 | M115: R$ 741.63 | N115: R$ 741.63 | O115: R$ 0.00
A116: Condor | B116: 38,351.34 | C116: 39,842.70 | D116: 1,491.36 | E116: 3,195.95 | F116: 3,320.23 | G116: 124.28 | H116: 4 - ALTO | I116: 0.747 | J116: R$ 16,220.28 | K116: R$ 16,220.28 | L116: R$ 0.00 | M116: R$ 1,351.69 | N116: R$ 1,351.69 | O116: R$ 0.00
A117: Constantina | B117: 56,865.78 | C117: 58,474.90 | D117: 1,609.12 | E117: 4,738.82 | F117: 4,872.91 | G117: 134.09 | H117: 4 - ALTO | I117: 0.754 | J117: R$ 24,050.76 | K117: R$ 24,050.76 | L117: R$ 0.00 | M117: R$ 2,004.23 | N117: R$ 2,004.23 | O117: R$ 0.00
A118: Coqueiro Baixo | B118: 8,983.80 | C118: 9,579.50 | D118: 595.70 | E118: 748.65 | F118: 798.29 | G118: 49.64 | H118: 3 - MÉDIO | I118: 0.692 | J118: R$ 3,799.60 | K118: R$ 3,799.60 | L118: R$ 0.00 | M118: R$ 316.63 | N118: R$ 316.63 | O118: R$ 0.00
A119: Coqueiros do Sul | B119: 18,648.36 | C119: 19,717.80 | D119: 1,069.44 | E119: 1,554.03 | F119: 1,643.15 | G119: 89.12 | H119: 4 - ALTO | I119: 0.746 | J119: R$ 7,887.12 | K119: R$ 7,887.12 | L119: R$ 0.00 | M119: R$ 657.26 | N119: R$ 657.26 | O119: R$ 0.00
A120: Coronel Barros | B120: 14,262.48 | C120: 14,862.10 | D120: 599.62 | E120: 1,188.54 | F120: 1,238.51 | G120: 49.97 | H120: 4 - ALTO | I120: 0.744 | J120: R$ 6,032.16 | K120: R$ 6,032.16 | L120: R$ 0.00 | M120: R$ 502.68 | N120: R$ 502.68 | O120: R$ 0.00
A121: Coronel Bicaco | B121: 44,478.18 | C121: 47,427.45 | D121: 2,949.27 | E121: 3,706.52 | F121: 3,952.29 | G121: 245.77 | H121: 3 - MÉDIO | I121: 0.665 | J121: R$ 18,811.56 | K121: R$ 18,811.56 | L121: R$ 0.00 | M121: R$ 1,567.63 | N121: R$ 1,567.63 | O121: R$ 0.00
A122: Coronel Pilar | B122: 9,675.72 | C122: 10,230.60 | D122: 554.88 | E122: 806.31 | F122: 852.55 | G122: 46.24 | H122: 4 - ALTO | I122: 0.727 | J122: R$ 4,092.24 | K122: R$ 4,092.24 | L122: R$ 0.00 | M122: R$ 341.02 | N122: R$ 341.02 | O122: R$ 0.00
A123: Cotiporã | B123: 27,269.46 | C123: 28,833.30 | D123: 1,563.84 | E123: 2,272.46 | F123: 2,402.78 | G123: 130.32 | H123: 4 - ALTO | I123: 0.741 | J123: R$ 11,533.32 | K123: R$ 11,533.32 | L123: R$ 0.00 | M123: R$ 961.11 | N123: R$ 961.11 | O123: R$ 0.00
A124: Coxilha | B124: 16,723.26 | C124: 17,682.30 | D124: 959.04 | E124: 1,393.61 | F124: 1,473.53 | G124: 79.92 | H124: 4 - ALTO | I124: 0.706 | J124: R$ 7,072.92 | K124: R$ 7,072.92 | L124: R$ 0.00 | M124: R$ 589.41 | N124: R$ 589.41 | O124: R$ 0.00
A125: Crissiumal | B125: 84,235.68 | C125: 89,066.40 | D125: 4,830.72 | E125: 7,019.64 | F125: 7,422.20 | G125: 402.56 | H125: 4 - ALTO | I125: 0.712 | J125: R$ 35,626.56 | K125: R$ 35,626.56 | L125: R$ 0.00 | M125: R$ 2,968.88 | N125: R$ 2,968.88 | O125: R$ 0.00
A126: Cristal | B126: 43,479.36 | C126: 47,653.55 | D126: 4,174.19 | E126: 3,623.28 | F126: 3,971.13 | G126: 347.85 | H126: 3 - MÉDIO | I126: 0.644 | J126: R$ 18,389.12 | K126: R$ 18,901.24 | L126: R$ 512.12 | M126: R$ 1,532.43 | N126: R$ 1,575.10 | O126: R$ 42.68
A127: Cristal do Sul | B127: 17,292.42 | C127: 18,439.05 | D127: 1,146.63 | E127: 1,441.04 | F127: 1,536.59 | G127: 95.55 | H127: 3 - MÉDIO | I127: 0.660 | J127: R$ 7,313.64 | K127: R$ 7,313.64 | L127: R$ 0.00 | M127: R$ 609.47 | N127: R$ 609.47 | O127: R$ 0.00
A128: Cruz Alta | B128: 359,564.04 | C128: 380,184.20 | D128: 20,620.16 | E128: 29,963.67 | F128: 31,682.02 | G128: 1,718.35 | H128: 4 - ALTO | I128: 0.750 | J128: R$ 152,073.68 | K128: R$ 152,073.68 | L128: R$ 0.00 | M128: R$ 12,672.81 | N128: R$ 12,672.81 | O128: R$ 0.00
A129: Cruzaltense | B129: 12,644.28 | C129: 13,369.40 | D129: 725.12 | E129: 1,053.69 | F129: 1,114.12 | G129: 60.43 | H129: 4 - ALTO | I129: 0.719 | J129: R$ 5,347.76 | K129: R$ 5,347.76 | L129: R$ 0.00 | M129: R$ 445.65 | N129: R$ 445.65 | O129: R$ 0.00
A130: Cruzeiro do Sul | B130: 71,156.16 | C130: 72,853.20 | D130: 1,697.04 | E130: 5,929.68 | F130: 6,071.10 | G130: 141.42 | H130: 4 - ALTO | I130: 0.723 | J130: R$ 30,094.72 | K130: R$ 30,094.72 | L130: R$ 0.00 | M130: R$ 2,507.89 | N130: R$ 2,507.89 | O130: R$ 0.00
A131: David Canabarro | B131: 27,102.06 | C131: 27,966.00 | D131: 863.94 | E131: 2,258.51 | F131: 2,330.50 | G131: 71.99 | H131: 4 - ALTO | I131: 0.762 | J131: R$ 11,462.52 | K131: R$ 11,462.52 | L131: R$ 0.00 | M131: R$ 955.21 | N131: R$ 955.21 | O131: R$ 0.00
A132: Derrubadas | B132: 18,921.78 | C132: 20,006.90 | D132: =C132-B132 -> 1,085.12 | E132: 1,576.82 | F132: 1,667.24 | G132: 90.43 | H132: 4 - ALTO | I132: 0.707 | J132: R$ 8,002.76 | K132: R$ 8,002.76 | L132: R$ 0.00 | M132: R$ 666.90 | N132: R$ 666.90 | O132: =(N132-M132) -> R$ 0.00
A133: Dezesseis de Novembro | B133: 16,310.34 | C133: 17,391.85 | D133: 1,081.51 | E133: 1,359.20 | F133: 1,449.32 | G133: 90.13 | H133: 3 - MÉDIO | I133: 0.654 | J133: R$ 6,898.28 | K133: R$ 6,898.28 | L133: R$ 0.00 | M133: R$ 574.86 | N133: R$ 574.86 | O133: R$ 0.00
A134: Dilermando de Aguiar | B134: 17,939.70 | C134: 19,129.25 | D134: 1,189.55 | E134: 1,494.98 | F134: 1,594.10 | G134: 99.13 | H134: 3 - MÉDIO | I134: 0.648 | J134: R$ 7,587.40 | K134: R$ 7,587.40 | L134: R$ 0.00 | M134: R$ 632.28 | N134: R$ 632.28 | O134: R$ 0.00
A135: Dois Irmãos | B135: 170,033.76 | C135: 192,758.90 | D135: 22,725.14 | E135: 14,169.48 | F135: 16,063.24 | G135: 1,893.76 | H135: 4 - ALTO | I135: 0.743 | J135: R$ 71,913.92 | K135: R$ 77,103.56 | L135: R$ 5,189.64 | M135: R$ 5,992.83 | N135: R$ 6,425.30 | O135: R$ 432.47
A136: Dois Irmãos das Missões | B136: 13,637.52 | C136: 14,541.80 | D136: 904.28 | E136: 1,136.46 | F136: 1,211.82 | G136: 75.36 | H136: 3 - MÉDIO | I136: 0.670 | J136: R$ 5,767.84 | K136: R$ 5,767.84 | L136: R$ 0.00 | M136: R$ 480.65 | N136: R$ 480.65 | O136: R$ 0.00
A137: Dois Lajeados | B137: 19,440.72 | C137: 20,060.00 | D137: 619.28 | E137: 1,620.06 | F137: 1,671.67 | G137: 51.61 | H137: 4 - ALTO | I137: 0.757 | J137: R$ 8,222.24 | K137: R$ 8,222.24 | L137: R$ 0.00 | M137: R$ 685.19 | N137: R$ 685.19 | O137: R$ 0.00
A138: Dom Feliciano | B138: 85,374.00 | C138: 92,484.00 | D138: 7,110.00 | E138: 7,114.50 | F138: 7,707.00 | G138: 592.50 | H138: 2 - BAIXO | I138: 0.587 | J138: R$ 36,108.00 | K138: R$ 36,377.04 | L138: R$ 269.04 | M138: R$ 3,009.00 | N138: R$ 3,031.42 | O138: R$ 22.42
A139: Dom Pedro de Alcântara | B139: 15,908.58 | C139: 16,963.45 | D139: 1,054.87 | E139: 1,325.72 | F139: 1,413.62 | G139: 87.91 | H139: 3 - MÉDIO | I139: 0.691 | J139: R$ 6,728.36 | K139: R$ 6,728.36 | L139: R$ 0.00 | M139: R$ 560.70 | N139: R$ 560.70 | O139: R$ 0.00
A140: Dom Pedrito | B140: 222,379.74 | C140: 226,919.90 | D140: 4,540.16 | E140: 18,531.65 | F140: 18,909.99 | G140: 378.35 | H140: 4 - ALTO | I140: 0.708 | J140: R$ 94,053.08 | K140: R$ 94,053.08 | L140: R$ 0.00 | M140: R$ 7,837.76 | N140: R$ 7,837.76 | O140: R$ 0.00
A141: Dona Francisca | B141: 20,048.94 | C141: 21,378.35 | D141: 1,329.41 | E141: 1,670.75 | F141: 1,781.53 | G141: 110.78 | H141: 3 - MÉDIO | I141: 0.697 | J141: R$ 8,479.48 | K141: R$ 8,479.48 | L141: R$ 0.00 | M141: R$ 706.62 | N141: R$ 706.62 | O141: R$ 0.00
A142: Doutor Maurício Cardoso | B142: 30,265.92 | C142: 32,001.60 | D142: 1,735.68 | E142: 2,522.16 | F142: 2,666.80 | G142: 144.64 | H142: 4 - ALTO | I142: 0.706 | J142: R$ 12,800.64 | K142: R$ 12,800.64 | L142: R$ 0.00 | M142: R$ 1,066.72 | N142: R$ 1,066.72 | O142: R$ 0.00
A143: Doutor Ricardo | B143: 11,723.58 | C143: 12,395.90 | D143: 672.32 | E143: 976.97 | F143: 1,032.99 | G143: 56.03 | H143: 4 - ALTO | I143: 0.724 | J143: R$ 4,958.36 | K143: R$ 4,958.36 | L143: R$ 0.00 | M143: R$ 413.20 | N143: R$ 413.20 | O143: R$ 0.00
A144: Eldorado do Sul | B144: 213,150.42 | C144: 243,581.50 | D144: 30,431.08 | E144: 17,762.54 | F144: 20,298.46 | G144: 2,535.92 | H144: 4 - ALTO | I144: 0.717 | J144: R$ 90,149.64 | K144: R$ 97,432.60 | L144: R$ 7,282.96 | M144: R$ 7,512.47 | N144: R$ 8,119.38 | O144: R$ 606.91
A145: Encantado | B145: 122,810.22 | C145: 133,965.40 | D145: 11,155.18 | E145: 10,234.19 | F145: 11,163.78 | G145: 929.60 | H145: 4 - ALTO | I145: 0.767 | J145: R$ 51,941.24 | K145: R$ 53,586.16 | L145: R$ 1,644.92 | M145: R$ 4,328.44 | N145: R$ 4,465.51 | O145: R$ 137.08
A146: Encruzilhada do Sul | B146: 143,969.58 | C146: 153,968.15 | D146: 9,998.57 | E146: 11,997.47 | F146: 12,830.68 | G146: 833.21 | H146: 3 - MÉDIO | I146: 0.657 | J146: R$ 60,890.36 | K146: R$ 61,069.72 | L146: R$ 179.36 | M146: R$ 5,074.20 | N146: R$ 5,089.14 | O146: R$ 14.95
A147: Engenho Velho | B147: 8,263.98 | C147: 8,737.90 | D147: 473.92 | E147: 688.67 | F147: 728.16 | G147: 39.49 | H147: 4 - ALTO | I147: 0.717 | J147: R$ 3,495.16 | K147: R$ 3,495.16 | L147: R$ 0.00 | M147: R$ 291.26 | N147: R$ 291.26 | O147: R$ 0.00
A148: Entre-Ijuís | B148: 51,687.54 | C148: 55,114.85 | D148: 3,427.31 | E148: 4,307.30 | F148: 4,592.90 | G148: 285.61 | H148: 3 - MÉDIO | I148: 0.680 | J148: R$ 21,860.68 | K148: R$ 21,860.68 | L148: R$ 0.00 | M148: R$ 1,821.72 | N148: R$ 1,821.72 | O148: R$ 0.00
A149: Entre Rios do Sul | B149: 17,225.46 | C149: 18,213.30 | D149: 987.84 | E149: 1,435.46 | F149: 1,517.78 | G149: 82.32 | H149: 4 - ALTO | I149: 0.703 | J149: R$ 7,285.32 | K149: R$ 7,285.32 | L149: R$ 0.00 | M149: R$ 607.11 | N149: R$ 607.11 | O149: R$ 0.00
A150: Erebango | B150: 17,102.70 | C150: 17,646.90 | D150: 544.20 | E150: 1,425.23 | F150: 1,470.58 | G150: 45.35 | H150: 4 - ALTO | I150: 0.712 | J150: R$ 7,233.40 | K150: R$ 7,233.40 | L150: R$ 0.00 | M150: R$ 602.78 | N150: R$ 602.78 | O150: R$ 0.00
A151: Erechim | B151: 574,215.48 | C151: 624,585.80 | D151: 50,370.32 | E151: 47,851.29 | F151: 52,048.82 | G151: 4,197.53 | H151: 4 - ALTO | I151: 0.776 | J151: R$ 242,858.16 | K151: R$ 249,834.32 | L151: R$ 6,976.16 | M151: R$ 20,238.18 | N151: R$ 20,819.53 | O151: R$ 581.35
A152: Ernestina | B152: 17,917.38 | C152: 18,691.20 | D152: 773.82 | E152: 1,493.12 | F152: 1,557.60 | G152: 64.49 | H152: 4 - ALTO | I152: 0.716 | J152: R$ 7,577.96 | K152: R$ 7,577.96 | L152: R$ 0.00 | M152: R$ 631.50 | N152: R$ 631.50 | O152: R$ 0.00
A153: Herval | B153: 39,729.60 | C153: 40,584.95 | D153: 855.35 | E153: 3,310.80 | F153: 3,382.08 | G153: 71.28 | H153: 3 - MÉDIO | I153: 0.687 | J153: R$ 16,803.20 | K153: R$ 16,803.20 | L153: R$ 0.00 | M153: R$ 1,400.27 | N153: R$ 1,400.27 | O153: R$ 0.00
A154: Erval Grande | B154: 29,947.86 | C154: 31,933.65 | D154: 1,985.79 | E154: 2,495.66 | F154: 2,661.14 | G154: 165.48 | H154: 3 - MÉDIO | I154: 0.681 | J154: R$ 12,666.12 | K154: R$ 12,666.12 | L154: R$ 0.00 | M154: R$ 1,055.51 | N154: R$ 1,055.51 | O154: R$ 0.00
A155: Erval Seco | B155: 45,733.68 | C155: 48,766.20 | D155: 3,032.52 | E155: 3,811.14 | F155: 4,063.85 | G155: 252.71 | H155: 3 - MÉDIO | I155: 0.685 | J155: R$ 19,342.56 | K155: R$ 19,342.56 | L155: R$ 0.00 | M155: R$ 1,611.88 | N155: R$ 1,611.88 | O155: R$ 0.00
A156: Esmeralda | B156: 18,877.14 | C156: 19,527.90 | D156: 650.76 | E156: 1,573.10 | F156: 1,627.33 | G156: 54.23 | H156: 3 - MÉDIO | I156: 0.680 | J156: R$ 7,983.88 | K156: R$ 7,983.88 | L156: R$ 0.00 | M156: R$ 665.32 | N156: R$ 665.32 | O156: R$ 0.00
A157: Esperança do Sul | B157: 19,351.44 | C157: 20,634.60 | D157: 1,283.16 | E157: 1,612.62 | F157: 1,719.55 | G157: 106.93 | H157: 3 - MÉDIO | I157: 0.661 | J157: R$ 8,184.48 | K157: R$ 8,184.48 | L157: R$ 0.00 | M157: R$ 682.04 | N157: R$ 682.04 | O157: R$ 0.00
A158: Espumoso | B158: 88,309.08 | C158: 91,969.20 | D158: 3,660.12 | E158: 7,359.09 | F158: 7,664.10 | G158: 305.01 | H158: 4 - ALTO | I158: 0.765 | J158: R$ 37,349.36 | K158: R$ 37,349.36 | L158: R$ 0.00 | M158: R$ 3,112.45 | N158: R$ 3,112.45 | O158: R$ 0.00
A159: Estação | B159: 34,891.74 | C159: 35,152.20 | D159: 260.46 | E159: 2,907.65 | F159: 2,929.35 | G159: 21.70 | H159: 4 - ALTO | I159: 0.753 | J159: R$ 14,757.08 | K159: R$ 14,757.08 | L159: R$ 0.00 | M159: R$ 1,229.76 | N159: R$ 1,229.76 | O159: R$ 0.00
A160: Estância Velha | B160: 261,573.66 | C160: 295,129.80 | D160: 33,556.14 | E160: 21,797.81 | F160: 24,594.15 | G160: 2,796.35 | H160: 4 - ALTO | I160: 0.757 | J160: R$ 110,629.72 | K160: R$ 118,051.92 | L160: R$ 7,422.20 | M160: R$ 9,219.14 | N160: R$ 9,837.66 | O160: R$ 618.52
A161: Esteio | B161: 469,356.12 | C161: 490,891.80 | D161: 21,535.68 | E161: 39,113.01 | F161: 40,907.65 | G161: 1,794.64 | H161: 4 - ALTO | I161: 0.754 | J161: R$ 198,509.04 | K161: R$ 198,509.04 | L161: R$ 0.00 | M161: R$ 16,542.42 | N161: R$ 16,542.42 | O161: R$ 0.00
A162: Estrela | B162: 183,861.00 | C162: 201,284.40 | D162: 17,423.40 | E162: 15,321.75 | F162: 16,773.70 | G162: 1,451.95 | H162: 4 - ALTO | I162: 0.767 | J162: R$ 77,762.00 | K162: R$ 80,513.76 | L162: R$ 2,751.76 | M162: R$ 6,480.17 | N162: R$ 6,709.48 | O162: R$ 229.31
A163: Estrela Velha | B163: 21,075.66 | C163: 21,747.25 | D163: 671.59 | E163: 1,756.31 | F163: 1,812.27 | G163: 55.97 | H163: 3 - MÉDIO | I163: 0.679 | J163: R$ 8,913.72 | K163: R$ 8,913.72 | L163: R$ 0.00 | M163: R$ 742.81 | N163: R$ 742.81 | O163: R$ 0.00
A164: Eugênio de Castro | B164: 17,203.14 | C164: 18,189.70 | D164: 986.56 | E164: 1,433.60 | F164: 1,515.81 | G164: 82.21 | H164: 4 - ALTO | I164: 0.712 | J164: R$ 7,275.88 | K164: R$ 7,275.88 | L164: R$ 0.00 | M164: R$ 606.32 | N164: R$ 606.32 | O164: R$ 0.00
A165: Fagundes Varela | B165: 15,155.28 | C165: 16,112.90 | D165: 957.62 | E165: 1,262.94 | F165: 1,342.74 | G165: 79.80 | H165: 4 - ALTO | I165: 0.763 | J165: R$ 6,409.76 | K165: R$ 6,445.16 | L165: R$ 35.40 | M165: R$ 534.15 | N165: R$ 537.10 | O165: R$ 2.95
A166: Farroupilha | B166: 385,388.28 | C166: 426,752.90 | D166: 41,364.62 | E166: 32,115.69 | F166: 35,562.74 | G166: 3,447.05 | H166: 4 - ALTO | I166: 0.777 | J166: R$ 162,995.76 | K166: R$ 170,701.16 | L166: R$ 7,705.40 | M166: R$ 13,582.98 | N166: R$ 14,225.10 | O166: R$ 642.12
A167: Faxinal do Soturno | B167: 38,323.44 | C167: 39,394.30 | D167: 1,070.86 | E167: 3,193.62 | F167: 3,282.86 | G167: 89.24 | H167: 4 - ALTO | I167: 0.720 | J167: R$ 16,208.48 | K167: R$ 16,208.48 | L167: R$ 0.00 | M167: R$ 1,350.71 | N167: R$ 1,350.71 | O167: R$ 0.00
A168: Faxinalzinho | B168: 14,547.06 | C168: 15,511.65 | D168: 964.59 | E168: 1,212.26 | F168: 1,292.64 | G168: 80.38 | H168: 3 - MÉDIO | I168: 0.666 | J168: R$ 6,152.52 | K168: R$ 6,152.52 | L168: R$ 0.00 | M168: R$ 512.71 | N168: R$ 512.71 | O168: R$ 0.00
A169: Fazenda Vilanova | B169: 23,145.84 | C169: 26,971.35 | D169: 3,825.51 | E169: 1,928.82 | F169: 2,247.61 | G169: 318.79 | H169: 3 - MÉDIO | I169: 0.698 | J169: R$ 9,789.28 | K169: R$ 10,697.88 | L169: R$ 908.60 | M169: R$ 815.77 | N169: R$ 891.49 | O169: R$ 75.72
A170: Feliz | B170: 73,700.64 | C170: 79,927.30 | D170: 6,226.66 | E170: 6,141.72 | F170: 6,660.61 | G170: 518.89 | H170: 4 - ALTO | I170: 0.750 | J170: R$ 31,170.88 | K170: R$ 31,970.92 | L170: R$ 800.04 | M170: R$ 2,597.57 | N170: R$ 2,664.24 | O170: R$ 66.67
A171: Flores da Cunha | B171: 164,079.90 | C171: 181,395.50 | D171: 17,315.60 | E171: 13,673.33 | F171: 15,116.29 | G171: 1,442.97 | H171: 4 - ALTO | I171: 0.754 | J171: R$ 69,395.80 | K171: R$ 72,558.20 | L171: R$ 3,162.40 | M171: R$ 5,782.98 | N171: R$ 6,046.52 | O171: R$ 263.53
A172: Floriano Peixoto | B172: 12,024.90 | C172: 12,822.25 | D172: 797.35 | E172: 1,002.08 | F172: 1,068.52 | G172: 66.45 | H172: 3 - MÉDIO | I172: 0.663 | J172: R$ 5,085.80 | K172: R$ 5,085.80 | L172: R$ 0.00 | M172: R$ 423.82 | N172: R$ 423.82 | O172: R$ 0.00
A173: Fontoura Xavier | B173: 63,249.30 | C173: 67,443.25 | D173: 4,193.95 | E173: 5,270.78 | F173: 5,620.27 | G173: 349.50 | H173: 3 - MÉDIO | I173: 0.661 | J173: R$ 26,750.60 | K173: R$ 26,750.60 | L173: R$ 0.00 | M173: R$ 2,229.22 | N173: R$ 2,229.22 | O173: R$ 0.00
A174: Formigueiro | B174: 40,254.12 | C174: 42,923.30 | D174: 2,669.18 | E174: 3,354.51 | F174: 3,576.94 | G174: 222.43 | H174: 3 - MÉDIO | I174: 0.682 | J174: R$ 17,025.04 | K174: R$ 17,025.04 | L174: R$ 0.00 | M174: R$ 1,418.75 | N174: R$ 1,418.75 | O174: R$ 0.00
A175: Forquetinha | B175: 14,586.12 | C175: 15,553.30 | D175: 967.18 | E175: 1,215.51 | F175: 1,296.11 | G175: 80.60 | H175: 3 - MÉDIO | I175: 0.683 | J175: R$ 6,169.04 | K175: R$ 6,169.04 | L175: R$ 0.00 | M175: R$ 514.09 | N175: R$ 514.09 | O175: R$ 0.00
A176: Fortaleza dos Valos | B176: 25,863.30 | C176: 27,346.50 | D176: 1,483.20 | E176: 2,155.28 | F176: 2,278.88 | G176: 123.60 | H176: 4 - ALTO | I176: 0.756 | J176: R$ 10,938.60 | K176: R$ 10,938.60 | L176: R$ 0.00 | M176: R$ 911.55 | N176: R$ 911.55 | O176: R$ 0.00
A177: Frederico Westphalen | B177: 171,300.42 | C177: 184,746.70 | D177: 13,446.28 | E177: 14,275.04 | F177: 15,395.56 | G177: 1,120.52 | H177: 4 - ALTO | I177: 0.760 | J177: R$ 72,449.64 | K177: R$ 73,898.68 | L177: R$ 1,449.04 | M177: R$ 6,037.47 | N177: R$ 6,158.22 | O177: R$ 120.75
A178: Garibaldi | B178: 186,282.72 | C178: 206,913.00 | D178: 20,630.28 | E178: 15,523.56 | F178: 17,242.75 | G178: 1,719.19 | H178: 4 - ALTO | I178: 0.786 | J178: R$ 78,786.24 | K178: R$ 82,765.20 | L178: R$ 3,978.96 | M178: R$ 6,565.52 | N178: R$ 6,897.10 | O178: R$ 331.58
A179: Garruchos | B179: 19,580.22 | C179: 20,878.55 | D179: 1,298.33 | E179: 1,631.69 | F179: 1,739.88 | G179: 108.19 | H179: 3 - MÉDIO | I179: 0.671 | J179: R$ 8,281.24 | K179: R$ 8,281.24 | L179: R$ 0.00 | M179: R$ 690.10 | N179: R$ 690.10 | O179: R$ 0.00
A180: Gaurama | B180: 34,774.56 | C180: 36,768.80 | D180: 1,994.24 | E180: 2,897.88 | F180: 3,064.07 | G180: 166.19 | H180: 4 - ALTO | I180: 0.738 | J180: R$ 14,707.52 | K180: R$ 14,707.52 | L180: R$ 0.00 | M180: R$ 1,225.63 | N180: R$ 1,225.63 | O180: R$ 0.00
A181: General Câmara | B181: 50,783.58 | C181: 54,150.95 | D181: 3,367.37 | E181: 4,231.97 | F181: 4,512.58 | G181: 280.61 | H181: 3 - MÉDIO | I181: 0.686 | J181: R$ 21,478.36 | K181: R$ 21,478.36 | L181: R$ 0.00 | M181: R$ 1,789.86 | N181: R$ 1,789.86 | O181: R$ 0.00
A182: Gentil | B182: 9,530.64 | C182: 9,640.60 | D182: 109.96 | E182: 794.22 | F182: 803.38 | G182: 9.16 | H182: 4 - ALTO | I182: 0.733 | J182: R$ 4,030.88 | K182: R$ 4,030.88 | L182: R$ 0.00 | M182: R$ 335.91 | N182: R$ 335.91 | O182: R$ 0.00
A183: Getúlio Vargas | B183: 92,895.84 | C183: 95,650.80 | D183: 2,754.96 | E183: 7,741.32 | F183: 7,970.90 | G183: 229.58 | H183: 4 - ALTO | I183: 0.746 | J183: R$ 39,289.28 | K183: R$ 39,289.28 | L183: R$ 0.00 | M183: R$ 3,274.11 | N183: R$ 3,274.11 | O183: R$ 0.00
A184: Giruá | B184: 95,635.62 | C184: 101,120.10 | D184: 5,484.48 | E184: 7,969.64 | F184: 8,426.68 | G184: 457.04 | H184: 4 - ALTO | I184: 0.721 | J184: R$ 40,448.04 | K184: R$ 40,448.04 | L184: R$ 0.00 | M184: R$ 3,370.67 | N184: R$ 3,370.67 | O184: R$ 0.00
A185: Glorinha | B185: 42,341.04 | C185: 47,778.20 | D185: 5,437.16 | E185: 3,528.42 | F185: 3,981.52 | G185: 453.10 | H185: 4 - ALTO | I185: 0.714 | J185: R$ 17,907.68 | K185: R$ 19,111.28 | L185: R$ 1,203.60 | M185: R$ 1,492.31 | N185: R$ 1,592.61 | O185: R$ 100.30
A186: Gramado | B186: 194,362.56 | C186: 213,768.80 | D186: 19,406.24 | E186: 16,196.88 | F186: 17,814.07 | G186: 1,617.19 | H186: 4 - ALTO | I186: 0.764 | J186: R$ 82,203.52 | K186: R$ 85,507.52 | L186: R$ 3,304.00 | M186: R$ 6,850.29 | N186: R$ 7,125.63 | O186: R$ 275.33
A187: Gramado dos Loureiros | B187: 13,386.42 | C187: 14,274.05 | D187: 887.63 | E187: 1,115.54 | F187: 1,189.50 | G187: 73.97 | H187: 3 - MÉDIO | I187: 0.685 | J187: R$ 5,661.64 | K187: R$ 5,661.64 | L187: R$ 0.00 | M187: R$ 471.80 | N187: R$ 471.80 | O187: R$ 0.00
A188: Gramado Xavier | B188: 23,614.56 | C188: 25,733.75 | D188: 2,119.19 | E188: 1,967.88 | F188: 2,144.48 | G188: 176.60 | H188: 3 - MÉDIO | I188: 0.634 | J188: R$ 9,987.52 | K188: R$ 10,207.00 | L188: R$ 219.48 | M188: R$ 832.29 | N188: R$ 850.58 | O188: R$ 18.29
A189: Gravataí | B189: 1,527,480.36 | C189: 1,660,962.10 | D189: 133,481.74 | E189: 127,290.03 | F189: 138,413.51 | G189: 11,123.48 | H189: 4 - ALTO | I189: 0.736 | J189: R$ 646,031.12 | K189: R$ 664,384.84 | L189: R$ 18,353.72 | M189: R$ 53,835.93 | N189: R$ 55,365.40 | O189: R$ 1,529.48
A190: Guabiju | B190: 9,497.16 | C190: 10,041.80 | D190: 544.64 | E190: 791.43 | F190: 836.82 | G190: 45.39 | H190: 4 - ALTO | I190: 0.758 | J190: R$ 4,016.72 | K190: R$ 4,016.72 | L190: R$ 0.00 | M190: R$ 334.73 | N190: R$ 334.73 | O190: R$ 0.00
A191: Guaíba | B191: 553,457.88 | C191: 579,043.70 | D191: 25,585.82 | E191: 46,121.49 | F191: 48,253.64 | G191: 2,132.15 | H191: 4 - ALTO | I191: 0.730 | J191: R$ 234,078.96 | K191: R$ 234,078.96 | L191: R$ 0.00 | M191: R$ 19,506.58 | N191: R$ 19,506.58 | O191: R$ 0.00
A192: Guaporé | B192: 137,697.66 | C192: 151,789.30 | D192: 14,091.64 | E192: 11,474.81 | F192: 12,649.11 | G192: 1,174.30 | H192: 4 - ALTO | I192: 0.765 | J192: R$ 58,237.72 | K192: R$ 60,715.72 | L192: R$ 2,478.00 | M192: R$ 4,853.14 | N192: R$ 5,059.64 | O192: R$ 206.50
A193: Guarani das Missões | B193: 46,950.12 | C193: 49,642.60 | D193: 2,692.48 | E193: 3,912.51 | F193: 4,136.88 | G193: 224.37 | H193: 4 - ALTO | I193: 0.737 | J193: R$ 19,857.04 | K193: R$ 19,857.04 | L193: R$ 0.00 | M193: R$ 1,654.75 | N193: R$ 1,654.75 | O193: R$ 0.00
A194: Harmonia | B194: 25,835.40 | C194: 28,709.40 | D194: 2,874.00 | E194: 2,152.95 | F194: 2,392.45 | G194: 239.50 | H194: 4 - ALTO | I194: 0.749 | J194: R$ 10,926.80 | K194: R$ 11,483.76 | L194: R$ 556.96 | M194: R$ 910.57 | N194: R$ 956.98 | O194: R$ 46.41
A195: Herveiras | B195: 17,113.86 | C195: 17,957.10 | D195: 843.24 | E195: 1,426.16 | F195: 1,496.43 | G195: 70.27 | H195: 3 - MÉDIO | I195: 0.616 | J195: R$ 7,238.12 | K195: R$ 7,238.12 | L195: R$ 0.00 | M195: R$ 603.18 | N195: R$ 603.18 | O195: R$ 0.00
A196: Horizontina | B196: 107,615.88 | C196: 114,041.10 | D196: =C196-B196 -> 6,425.22 | E196: 8,967.99 | F196: 9,503.43 | G196: 535.44 | H196: 4 - ALTO | I196: 0.783 | J196: R$ 45,514.96 | K196: R$ 45,616.44 | L196: R$ 101.48 | M196: R$ 3,792.91 | N196: R$ 3,801.37 | O196: =(N196-M196) -> R$ 8.46
A197: Hulha Negra | B197: 36,387.18 | C197: 40,317.20 | D197: 3,930.02 | E197: 3,032.27 | F197: 3,359.77 | G197: 327.50 | H197: 3 - MÉDIO | I197: 0.643 | J197: R$ 15,389.56 | K197: R$ 15,991.36 | L197: R$ 601.80 | M197: R$ 1,282.46 | N197: R$ 1,332.61 | O197: R$ 50.15
A198: Humaitá | B198: 27,894.42 | C198: 28,095.80 | D198: 201.38 | E198: 2,324.54 | F198: 2,341.32 | G198: 16.78 | H198: 4 - ALTO | I198: 0.738 | J198: R$ 11,797.64 | K198: R$ 11,797.64 | L198: R$ 0.00 | M198: R$ 983.14 | N198: R$ 983.14 | O198: R$ 0.00
A199: Ibarama | B199: 25,210.44 | C199: 26,215.70 | D199: 1,005.26 | E199: 2,100.87 | F199: 2,184.64 | G199: 83.77 | H199: 3 - MÉDIO | I199: 0.652 | J199: R$ 10,662.48 | K199: R$ 10,662.48 | L199: R$ 0.00 | M199: R$ 888.54 | N199: R$ 888.54 | O199: R$ 0.00
A200: Ibiaçá | B200: 27,046.26 | C200: 27,783.10 | D200: 736.84 | E200: 2,253.86 | F200: 2,315.26 | G200: 61.40 | H200: 4 - ALTO | I200: 0.739 | J200: R$ 11,438.92 | K200: R$ 11,438.92 | L200: R$ 0.00 | M200: R$ 953.24 | N200: R$ 953.24 | O200: R$ 0.00
... 301 more rows
